Cogmind - Beta 16 @@@ ROGUE MODE // 2025.11.23 @ 14:28:11 Player: Torako Result: Destroyed by AO-C2W(R) with Subdweller Beam Cannon Performance ------------- Evolutions (0) 0 Regions Visited (3) 600 Robots Destroyed (15) 75 Value Destroyed (495) 495 Prototype IDs (0) 0 Alien Tech Used (0) 0 Bonus (0) 0 TOTAL SCORE: 1170 Bonus ------- None Cogmind --------- Core Integrity 0/250 Matter 282/300 Energy 250/250 System Corruption 0% Temperature Cool (9) Movement Treading (160) Location -10/Subcaves Parts ------- > --- POWER (1) -------- Ion Engine > --- PROPULSION (2) --- Light Treads Light Treads > --- UTILITY (2) ------ Scrap Shield > --- WEAPON (2) ------- Light Assault Rifle Subdweller Machine Gun > --- INVENTORY (5) ---- Subdweller Power Source Disposable Heat Sink Large Storage Unit High-capacity Matter Pod (200) Peak State ------------ > --- POWER ------------ Ion Engine > --- PROPULSION ------- Light Treads Light Treads > --- UTILITY ---------- Disposable Heat Sink Medium Storage Unit > --- WEAPON ----------- Subdweller Machine Gun Barrage Gun > --- INVENTORY -------- Aluminum Leg Heat Sink Large Storage Unit High-capacity Matter Pod Scrap Shield Light Assault Rifle Light Assault Rifle Scrap Shield Fragment [Rating: 12] Favorites ----------- Power Ion Engine Engine Ion Engine Propulsion Aluminum Leg Treads Light Treads Leg Aluminum Leg Utility Medium Storage Unit Device Heat Sink Storage Medium Storage Unit Protection Weapon Shielding Weapon Small Laser Energy Gun Small Laser Ballistic Gun Subdweller Machine Gun Build | -11 -10 -10 -10 ------- Run | Yrd Mat Min Sub Slots Evolved . | . . . . Power . | . . . . Propulsion . | . . . . Utility . | . . . . Weapon . | . . . . Parts Attached 17 | 6 3 . 8 Power 2 | 1 . . 1 Engine 2 | 1 . . 1 Core . | . . . . Reactor . | . . . . Propulsion 4 | 2 . . 2 Treads 2 | . . . 2 Leg 2 | 2 . . . Wheel . | . . . . Hover . | . . . . Flight . | . . . . Utility 6 | 1 3 . 2 Device 2 | . 1 . 1 Storage 2 | 1 1 . . Processor . | . . . . Hackware . | . . . . Protection 2 | . 1 . 1 Artifact . | . . . . Weapon 5 | 2 . . 3 Energy Gun 2 | 2 . . . Energy Cannon . | . . . . Ballistic Gun 3 | . . . 3 Ballistic Cannon . | . . . . Launcher . | . . . . Special Weapon . | . . . . Impact Weapon . | . . . . Slashing Weapon . | . . . . Piercing Weapon . | . . . . Special Melee Weapon . | . . . . Unidentified Prototypes . | . . . . Parts Lost 5 | . . . 5 Power 1 | . . . 1 Propulsion 1 | . . . 1 Utility . | . . . . Weapon 3 | . . . 3 Highest Loss Streak 3 | . . . 3 To Critical Strikes . | . . . . Average Backups 6 | 2 5 8 6 Power . | . 1 1 . Propulsion 1 | 1 2 2 1 Utility 2 | . . 3 3 Weapon 1 | . 1 2 1 Tool/Special . | . . . . Unused Backups 5 | . . . 5 Power 2 | . . . 2 Propulsion . | . . . . Utility 2 | . . . 2 Weapon 1 | . . . 1 Tool/Special . | . . . . Average Slot Usage (%) 94 | . 93 100 94 Engine 14 | . 14 14 14 Treads 8 | . . . 16 Leg 19 | . 28 28 11 Device 6 | . 1 14 9 Storage 11 | . 14 14 9 Protection 4 | . 6 . 4 Energy Gun 18 | . 28 28 8 Ballistic Gun 9 | . . . 19 Peak Build Rating 12 | 6 7 7 12 Average Rating 8 | 4 6 7 10 On Entrance 5 | . 6 7 7 Avg Prop Armor Cover (%) . | . . . . Naked Turns . | . . . . Heaviest Build 28 | 13 19 19 28 Greatest Support 40 | 20 20 20 40 Greatest Overweight (x) . | . . . . Average Overweight (x) . | . . . . Largest Inventory Capacity 10 | 8 10 10 10 Average Capacity 8 | 7 9 10 8 Most Carried 10 | 4 8 8 10 Average Carried 6 | 2 5 8 7 Final Capacity 10 | 8 10 10 5 Final Carried 8 | 4 8 8 4 Class Distribution -------------------- 100% | Mutant Dominant Class ---------------- Mutant | -10/Materials Mutant | -10/Mines Mutant | -10/Subcaves Resources | -11 -10 -10 -10 ----------- Run | Yrd Mat Min Sub Matter Collected 637 | 237 157 . 243 Remotely . | . . . . Salvage Created 540 | . 292 . 248 Parts 29 | . 10 . 19 Haulers Intercepted . | . . . . Recyclers Shooed 1 | . 1 . . Parts Field Recycled . | . . . . Retrieved Matter . | . . . . Parts Self-Destructed 13 | . . . 13 Prevented . | . . . . Parts Restored . | . . . . Kills | -11 -10 -10 -10 ------- Run | Yrd Mat Min Sub Combat Hostiles Destroyed 15 | . 7 . 8 Guns 15 | . 7 . 8 Classes Destroyed 3 | . 1 . 2 Swarmer 3 | . . . 3 Grunt 9 | . 7 . 2 Subdweller 3 | . . . 3 Best Kill Streak 3 | . 3 . 3 Combat Bots Only 3 | . 3 . 3 Max Kills in Single Turn 1 | . 1 . 1 Gunslinging . | . . . . Exploded . | . . . . Melee . | . . . . Uniques/NPCs Destroyed . | . . . . Combat | -11 -10 -10 -10 -------- Run | Yrd Mat Min Sub Hostile Shots Fired 98 | . 35 . 63 Missed 20 | . 3 . 17 Hits 78 | . 32 . 46 Projectile 78 | . 32 . 46 Damage Taken 1172 | . 379 . 793 Core 272 | . 113 . 159 Absorbed by Shields . | . . . . Redirected to Shielding 19 | . 19 . . Core Remaining (%) 100 | 100 . . . Volleys Fired 53 | . 25 . 28 Largest 2 | . 2 . 2 Hottest 90 | . 90 . 90 Shots Fired 101 | . 46 . 55 Gun 101 | . 46 . 55 Cannon . | . . . . Launcher . | . . . . Special . | . . . . Kinetic 39 | . . . 39 Thermal 62 | . 46 . 16 Explosive . | . . . . Electromagnetic . | . . . . Robot Hit Streak 16 | . 16 . 9 Robot Miss Streak 3 | . 2 . 3 Penetration Max . | . . . . Secondary Targets 3 | . 1 . 2 Max Gunslinging Chain 1 | . 1 . 1 Shots Hit Robots 73 | . 33 . 40 Core Hits 30 | . 16 . 14 Critical Kills . | . . . . Critical Parts Destroyed . | . . . . Critical Strikes 3 | . 3 . . Burn 3 | . 3 . . Melee Attacks . | . . . . Impact . | . . . . Slashing . | . . . . Piercing . | . . . . Sneak Attacks . | . . . . Combat Hostiles . | . . . . Follow-up Attacks . | . . . . Damage Inflicted 1050 | . 414 . 636 Guns 1050 | . 414 . 636 Cannons . | . . . . Explosions . | . . . . Melee . | . . . . Ramming . | . . . . Kinetic 531 | . . . 531 Thermal 519 | . 414 . 105 Explosive . | . . . . Electromagnetic . | . . . . Impact . | . . . . Slashing . | . . . . Piercing . | . . . . Highest Corruption . | . . . . Average Corruption . | . . . . Corruption Purged . | . . . . Corruption Blocked . | . . . . Overload Shots . | . . . . Overflow Damage . | . . . . Projectiles . | . . . . Explosions . | . . . . Melee . | . . . . Knockbacks . | . . . . Impact . | . . . . Kinetic . | . . . . Secondary . | . . . . Self-Inflicted Damage . | . . . . Shots . | . . . . Rammed . | . . . . Targets Rammed . | . . . . Kicked . | . . . . Crushed . | . . . . Highest Temperature 399 | . 399 . . Average Temperature 172 | . 172 . . Received Heat Transfer 381 | . 210 . 171 Effects 4 | . 4 . . Energy Bleed 2 | . 2 . . Interference 1 | . 1 . . Damage (minor) 1 | . 1 . . Siege Activations . | . . . . Martial Activations . | . . . . Shielding Activations . | . . . . Robots Disrupted . | . . . . Combat Hostiles . | . . . . Robots Corrupted . | . . . . Combat Hostiles . | . . . . Parts Fried . | . . . . Impact Corruptions . | . . . . Robots Melted . | . . . . Combat Hostiles . | . . . . Parts Melted 5 | . 5 . . Heat Transferred 1610 | . 1337 . 273 Parts Sabotaged . | . . . . Parts Stolen . | . . . . Parts Stripped . | . . . . Power Chain Reactions . | . . . . Alert | -11 -10 -10 -10 ------- Run | Yrd Mat Min Sub Maximum Alert Level . | . . . . Low Security (%) 100 | 100 100 100 . Level 1 . | . . . . Level 2 . | . . . . Level 3 . | . . . . Level 4 . | . . . . Level 5 . | . . . . High Security . | . . . . Max Security . | . . . . Peak Influence 80 | . 80 23 . Initial 23 | . . 23 . Average 27 | . 36 10 . Influence Increases 308 | . 188 . 120 Destroy 0b10 Robot/C 240 | . 140 . 100 Destroy Leader 60 | . 40 . 20 Successful Hack 8 | . 8 . . Influence Decreases 308 | . 128 60 120 Entered New Map 37 | . . 37 . Time Decay 241 | . 128 23 90 Lost Part 30 | . . . 30 Squads Dispatched 2 | . 2 . . Investigation 1 | . 1 . . Extermination . | . . . . Reinforcement 1 | . 1 . . Assault . | . . . . Garrison . | . . . . Intercept . | . . . . Searches Triggered . | . . . . Construction Impeded . | . . . . Haulers Reinforced . | . . . . Active Scanning Responses . | . . . . Cargo Convoy Interrupts . | . . . . Stealth | -11 -10 -10 -10 --------- Run | Yrd Mat Min Sub Distress Signals 2 | . 2 . . Communications Jammed . | . . . . Distress Signals . | . . . . Times Spotted 18 | . 9 . 9 Peak Tracking Total 5 | . 5 . 3 Tactical Retreats . | . . . . Traps | -11 -10 -10 -10 ------- Run | Yrd Mat Min Sub Traps Triggered 1 | . 1 . . Indirectly . | . . . . Trap Hack Attempts . | . . . . Triggered . | . . . . Disarmed . | . . . . Reprogrammed . | . . . . Reused . | . . . . Traps Extracted . | . . . . Installed . | . . . . Triggered . | . . . . Machines | -11 -10 -10 -10 ---------- Run | Yrd Mat Min Sub Machines Disabled . | . . . . Max in Single Turn . | . . . . Machines Repaired . | . . . . Machines Dismantled . | . . . . Machines Sabotaged . | . . . . Overloaded Fab Kills . | . . . . Hacking | -11 -10 -10 -10 --------- Run | Yrd Mat Min Sub Machines Accessed 2 | . 2 . . Terminals 2 | . 2 . . Fabricators . | . . . . Repair Stations . | . . . . Recycling Units . | . . . . Scanalyzers . | . . . . Garrison Access . | . . . . Total Hacks 8 | . 8 . . Successful 5 | . 5 . . Failed 3 | . 3 . . Catastrophic 1 | . 1 . . Database Lockouts . | . . . . Manual 6 | . 6 . . Terminals 8 | . 8 . . Fabricators . | . . . . Repair Stations . | . . . . Recycling Units . | . . . . Scanalyzers . | . . . . Garrison Access . | . . . . Terminal Hacks 1 | . 1 . . Branch Access Points 1 | . 1 . . Fabricator Hacks . | . . . . Repair Station Hacks . | . . . . Recycling Unit Hacks . | . . . . Scanalyzer . | . . . . Garrison Access Hacks . | . . . . Unauthorized Hacks 4 | . 4 . . Terminals 4 | . 4 . . Track 1 | . 1 . . Botnet 2 | . 2 . . Operators 1 | . 1 . . Fabricators . | . . . . Repair Stations . | . . . . Recycling Units . | . . . . Scanalyzers . | . . . . Garrison Access . | . . . . Data Cores Recovered . | . . . . Used . | . . . . Hacking Detections 2 | . 2 . . Full Trace Events . | . . . . Feedback Events . | . . . . Feedback Blocked . | . . . . Robot Schematics Acquired . | . . . . Robots Built . | . . . . Authchips . | . . . . Time . | . . . . Total Robot Build Rating . | . . . . Part Schematics Acquired . | . . . . Parts Built . | . . . . Authchips . | . . . . Time . | . . . . Total Part Build Rating . | . . . . Part Studies Acquired . | . . . . Parts Repaired . | . . . . Time . | . . . . Parts Recycled . | . . . . Recycled Matter . | . . . . Retrieved Matter . | . . . . Retrieved Components . | . . . . Parts Scanalyzed . | . . . . Part Schematics Acquired . | . . . . Parts Damaged . | . . . . Bothacking | -11 -10 -10 -10 ------------ Run | Yrd Mat Min Sub Used RIF Installer . | . . . . Robots Hacked . | . . . . Non-combat . | . . . . Combat . | . . . . Robot Hacks Applied . | . . . . Relay Couplers Released . | . . . . Fabnet Peak Effective % . | . . . . Robots Rewired . | . . . . Allies Hacked . | . . . . Hacks Repelled . | . . . . Allies | -11 -10 -10 -10 -------- Run | Yrd Mat Min Sub Total Allies . | . . . . Largest Group . | . . . . Highest-Rated Group . | . . . . Highest-Rated Ally . | . . . . Total Orders . | . . . . Ally Attacks . | . . . . Total Damage . | . . . . Kills . | . . . . Allies Corrupted . | . . . . Allies Melted . | . . . . Intel | -11 -10 -10 -10 ------- Run | Yrd Mat Min Sub Active Infowar (turns) . | . . . . Robot Analysis Total . | . . . . Derelict Logs Recovered . | . . . . Drone Launches . | . . . . Drone Recoveries . | . . . . Exploration | -11 -10 -10 -10 ------------- Run | Yrd Mat Min Sub Turns Passed 862 | 66 311 72 413 Spaces Moved 488 | 47 169 60 212 Core 10 | 10 . . . Treads 112 | . . . 112 Legs 366 | 37 169 60 100 Wheels . | . . . . Hover . | . . . . Flight . | . . . . Fastest Speed 50 | 50 120 120 120 Average Speed 127 | 105 120 120 141 Slowest Speed 160 | 120 120 120 160 Overloaded Moves . | . . . . Propulsion Burnouts . | . . . . Robots Hopped . | . . . . Potential Cave-ins . | . . . . Cave-ins Triggered . | . . . . Exploration Rate (%) 18 | 4 34 18 17 Regions Visited 3 Branch Regions 2 Pre-discovered Areas . | . . . . Known Exits Taken 1 | . 1 . . Unknown Exits Taken 2 | 1 . 1 . Scrap Searched . | . . . . Spaces Dug . | . . . . Terrain Destroyed . | . . . . Melee . | . . . . Projectile . | . . . . AOE . | . . . . Terrain Rammed . | . . . . Walls Destroyed . | . . . . Machines Disabled . | . . . . Actions | -11 -10 -10 -10 --------- Run | Yrd Mat Min Sub Total 627 | 60 230 60 277 Wait 47 | 4 29 1 13 Move 485 | 46 168 59 212 Hop . | . . . . Pick Up 15 | 4 3 . 8 Fast Attach 9 | 6 2 . 1 Attach 7 | . . . 7 Detach 3 | . 1 . 2 Swap 2 | . 1 . 1 Drop 6 | . 1 . 5 Fire 53 | . 25 . 28 Melee . | . . . . Ram . | . . . . Kick . | . . . . Crush . | . . . . Escape Stasis . | . . . . Rewire . | . . . . Trap . | . . . . Miscellaneous . | . . . . Route ------- -11/Scrapyard -10/Materials (discovered 3 exits: [*Mat] / *Min x2) -10/Mines (discovered 2 exits: [*Mat] / [*Sub]) -10/Subcaves History --------- Turn | Location | Event 22 | -11/Scrapyard | Discovered new exit (range 15) 67 | -11/Scrapyard | Entered Materials 245 | -10/Materials | Discovered new exit (range 7) 277 | -10/Materials | Identified exit to Mines 279 | -10/Materials | Discovered new exit (range 14) 301 | -10/Materials | Build established: Mutant 378 | -10/Materials | Entered Mines 412 | -10/Mines | Discovered new exit (range 14) 444 | -10/Mines | Discovered new exit (range 5) 450 | -10/Mines | Entered Subcaves 451 | -10/Subcaves | Approached by a straggling Scientist 452 | -10/Subcaves | Shifting Twisted Machinery released Barrage Gun 522 | -10/Subcaves | Core integrity fell below 50% 605 | -10/Subcaves | Shifting Twisted Machinery released Scrap Shield 626 | -10/Subcaves | Shifting Twisted Machinery released Sub. Monowheel 647 | -10/Subcaves | Lost 3 parts (1p1n1w) 727 | -10/Subcaves | Core integrity fell below 20% 863 | -10/Subcaves | Destroyed by AO-C2W(R) with Subdweller Beam Cannon Last Messages --------------- Flight Unit fries itself beyond repair. Acquired 12 matter. 4I-DUX(c): "I think it's somewhere southeast of here" 4I-DUX(c): "I think it's somewhere south of here" Barrage Gun destroyed. Dropped Med. Storage Unit. Dropped Disposable Heat Sink. 7T-ILO(R) destroyed. Switching to secondary target: 8R-GI9(R). 8R-GI9(R) destroyed. Acquired Scrap Shield Fragment. Subatomizers dissect the Sub. Machine Gun. Acquired 36 matter. Acquired 33 matter. Dropped Scrap Shield Fragment. Subatomizers dissect the Sub. Machine Gun. Acquired Disposable Heat Sink. Acquired Sub. Power Source. Subatomizers dissect the Sub. Machine Gun. KJ-7GO(R) destroyed. Map ----- +----------------------------------------------------+ | " ""=""#?###?###?????????????# ????????????? | | " "" ### ## ###???????? ? ????????????? | | " " #???????? ????????????? | | ???????? ???????????? | | # #?????????? ????????????? | | # # #??????????# ????????????? | | #??????????# #? #????????????? | | # ####??????## #??# ##???????????? | | ##### # ## ####??## #?## ####????????? | | ????############ #### ### #????????? | | ???????????????# #????????? | | ???????????????##### #????????? | | ???????????????????## ### #?????????? | | ??????????????## ??### ##??# & #??????????? | | ??????????????# ## ##### !&%[###?????????? | | ???????????????# &! ! #?????????? | | ???????????????# [!=& ###???????? | | ???????????????## ## ### # ##??????? | | ????????????????# #### #### # #??????? | | ????????????????## #??###?# # ##?????? | | ?????????????????## ## #??????# #?????? | | ??????????????????# ##?# ##?????## #?????? | | ??????????????????###??## ######## #?????? | | ???????????????????????# R# ## ## #####???? | | ???????????????????????##[% ## ## " & #???? | | ???????????????????????# @#### # #"" " #???? | | ??????????????????????#;###??# # " #???? | | ?????????????????????????????## #### #?" "#???? | | ??????????????????????????????###### ## "???? | | ??????????????????????????????????# #&###???? | | ??????????????????????????????????# #?????? | | ??????????????????????????????????# ## #?????? | | ??????????????????????????????????## #?????? | | ???????????????????????????????????### ##?????? | | ?????????????????????????????????????#### #??????? | | ????????????????????????????????????????# %#?????? | | ???????????????????????????????????????? #?????? | | ???????????????????????????????????????? #?????? | | ??????????????????????????????????????? #?????? | | ???????????????????????????????????????# #?????? | | ???????????????????????????????????????# #?????? | | ???????????????????????????????????????# ##?????? | | ???????????????????????????????????????# #??????? | | ??????????????????????????????????????? ???????? | | ??????????????????????????????????????? ???????? | | ??????????????????????????????????????? ##???????? | | ??????????????????????????????????????? ?????????? | | ??????????????????????????????????????? ?????????? | | ???????????????????????????????????????#?????????? | | ?????????????????????????????????????????????????? | +----------------------------------------------------+ Best States ------------- Heat Dissipation 35 Coolant Potential 50 Energy Generation 10 Energy Capacity 250 Matter Stores 300 Matter Capacity 300 Sight Range 16 Terrain Scan Density 10 Armor Coverage 800 Weapon Shielding 33 Evasion (%) 55 Recoil Reduction 2 Item Schematics ----------------- None Robot Schematics ------------------ None Fabricated ------------ Nothing Repaired ---------- Nothing Studied --------- None Alien Tech Used ----------------- None Achievements -------------- There's More Where That Came From Challenges ------------ None Game ------ Seed MakeshiftAntimatterPendant Manual? 0 Play Time 00:12:07 Cumulative 354.5 hours Start 2025.11.15 @ 02:15:28 End 2025.11.23 @ 14:28:11 Sessions 1 Manual Loads 0 Difficulty Rogue Special Mode None Game No. 348 Rogue 348 Adventurer 0 Explorer 0 Win Type - Total 25 Types 19/0/4/2/0/0/0/0/0/0 Lore% 68 Gallery% 75 Achievement% 43 Wizard Run 0 Options --------- Layout 0 ASCII 0 Keyboard 1 Movement Numpad Keybinds 0 Fullscreen 1 Font 18/SmallcapsGlow Map View 76x50 Zoom Use 0% Tactical HUD 1 Map Filters NONE Filters NONE Steam 1 RUN: c9cee777-1585-4723-87c8-416af90ce752